[Event "Titled Tuesday Blitz May 24 Late 2022"]
[White "Drygalov, Sergey"]
[Black "Jia, Haoxiang"]
[WhiteFideId "24171743"]
[BlackFideId "8602999"]
[WhiteElo "2514"]
[BlackElo "2638"]
[Result "1/2-1/2"]
[Round "06"]
[TimeControl "180+1"]
[Date "2022.05.24"]
[WhiteClock "0:00:03"]
[BlackClock "0:00:25"]

1. d4 {[%clk 0:02:58]}  d5 {[%clk 0:02:55]} 2. c4 {[%clk 0:02:58]}  c6 {[%clk 0:02:55]} 3. Nf3 {[%clk 0:02:59]}  Nf6 {[%clk 0:02:55]} 4. Nc3 {[%clk 0:02:59]}  dxc4 {[%clk 0:02:54]} 5. a4 {[%clk 0:02:57]}  Bf5 {[%clk 0:02:54]} 6. Ne5 {[%clk 0:02:57]}  Nbd7 {[%clk 0:02:54]} 7. Nxc4 {[%clk 0:02:57]}  Nb6 {[%clk 0:02:54]} 8. Ne5 {[%clk 0:02:56]}  a5 {[%clk 0:02:54]} 9. h4 {[%clk 0:02:55]}  Nfd7 {[%clk 0:02:39]} 10. e4 {[%clk 0:02:51]}  Nxe5 {[%clk 0:02:39]} 11. exf5 {[%clk 0:02:51]}  Nec4 {[%clk 0:02:38]} 12. b3 {[%clk 0:02:49]}  Nd6 {[%clk 0:02:38]} 13. Bd3 {[%clk 0:02:49]}  g6 {[%clk 0:02:37]} 14. fxg6 {[%clk 0:02:46]}  hxg6 {[%clk 0:02:37]} 15. h5 {[%clk 0:02:45]}  Qd7 {[%clk 0:02:33]} 16. Be3 {[%clk 0:02:37]}  Bg7 {[%clk 0:02:32]} 17. Qf3 {[%clk 0:02:33]}  O-O-O {[%clk 0:02:29]} 18. O-O-O {[%clk 0:02:29]}  Rxh5 {[%clk 0:02:28]} 19. Rxh5 {[%clk 0:02:29]}  gxh5 {[%clk 0:02:29]} 20. Qxh5 {[%clk 0:02:30]}  Qe6 {[%clk 0:02:11]} 21. Kc2 {[%clk 0:02:29]}  Nd5 {[%clk 0:02:10]} 22. Nxd5 {[%clk 0:02:29]}  Qxd5 {[%clk 0:02:10]} 23. Qxd5 {[%clk 0:02:24]}  cxd5 {[%clk 0:02:10]} 24. Kd2 {[%clk 0:02:12]}  Kd7 {[%clk 0:02:09]} 25. Ke2 {[%clk 0:02:04]}  b6 {[%clk 0:02:07]} 26. g4 {[%clk 0:01:57]}  Rc8 {[%clk 0:02:06]} 27. f3 {[%clk 0:01:57]}  Rc3 {[%clk 0:02:05]} 28. Rb1 {[%clk 0:01:57]}  e6 {[%clk 0:02:01]} 29. Kd2 {[%clk 0:01:49]}  Rc8 {[%clk 0:02:00]} 30. Rh1 {[%clk 0:01:45]}  Rh8 {[%clk 0:02:00]} 31. Rxh8 {[%clk 0:01:45]}  Bxh8 {[%clk 0:02:01]} 32. Kc3 {[%clk 0:01:46]}  Bf6 {[%clk 0:01:52]} 33. Bf4 {[%clk 0:01:46]}  Bh4 {[%clk 0:01:50]} 34. Be5 {[%clk 0:01:44]}  f6 {[%clk 0:01:46]} 35. Bf4 {[%clk 0:01:36]}  Be1+ {[%clk 0:01:45]} 36. Bd2 {[%clk 0:01:36]}  Bxd2+ {[%clk 0:01:39]} 37. Kxd2 {[%clk 0:01:37]}  e5 {[%clk 0:01:35]} 38. Ke3 {[%clk 0:01:37]}  Ke6 {[%clk 0:01:35]} 39. f4 {[%clk 0:01:37]}  e4 {[%clk 0:01:31]} 40. Be2 {[%clk 0:01:35]}  f5 {[%clk 0:01:24]} 41. g5 {[%clk 0:01:35]}  Kf7 {[%clk 0:01:24]} 42. Kf2 {[%clk 0:01:36]}  Kg6 {[%clk 0:01:24]} 43. Kg3 {[%clk 0:01:36]}  Kg7 {[%clk 0:01:20]} 44. Kh4 {[%clk 0:01:36]}  Kg6 {[%clk 0:01:20]} 45. Kg3 {[%clk 0:01:27]}  Kg7 {[%clk 0:01:19]} 46. Kf2 {[%clk 0:01:27]}  Kg6 {[%clk 0:01:19]} 47. Ke3 {[%clk 0:01:28]}  Kg7 {[%clk 0:01:19]} 48. Kd2 {[%clk 0:01:28]}  Kg6 {[%clk 0:01:18]} 49. Kc3 {[%clk 0:01:27]}  Kg7 {[%clk 0:01:18]} 50. Bh5 {[%clk 0:01:27]}  Kh7 {[%clk 0:01:17]} 51. Be2 {[%clk 0:01:02]}  Kg6 {[%clk 0:01:17]} 52. b4 {[%clk 0:00:59]}  Kg7 {[%clk 0:01:15]} 53. bxa5 {[%clk 0:00:55]}  bxa5 {[%clk 0:01:15]} 54. Bb5 {[%clk 0:00:42]}  Kf7 {[%clk 0:00:57]} 55. Bc6 {[%clk 0:00:39]}  Ke6 {[%clk 0:00:57]} 56. Ba8 {[%clk 0:00:27]}  Nc8 {[%clk 0:00:56]} 57. Bc6 {[%clk 0:00:23]}  Ne7 {[%clk 0:00:56]} 58. Be8 {[%clk 0:00:21]}  Nc8 {[%clk 0:00:55]} 59. Kd2 {[%clk 0:00:18]}  Nd6 {[%clk 0:00:54]} 60. Bb5 {[%clk 0:00:18]}  Nf7 {[%clk 0:00:46]} 61. Bc6 {[%clk 0:00:17]}  Nd8 {[%clk 0:00:42]} 62. Ba8 {[%clk 0:00:15]}  Nf7 {[%clk 0:00:42]} 63. g6 {[%clk 0:00:16]}  Nh6 {[%clk 0:00:38]} 64. Ke3 {[%clk 0:00:15]}  Ng8 {[%clk 0:00:37]} 65. Kf2 {[%clk 0:00:15]}  Ne7 {[%clk 0:00:37]} 66. Bb7 {[%clk 0:00:09]}  Kf6 {[%clk 0:00:37]} 67. Bc8 {[%clk 0:00:09]}  Nxg6 {[%clk 0:00:36]} 68. Ke3 {[%clk 0:00:09]}  Ne7 {[%clk 0:00:36]} 69. Bd7 {[%clk 0:00:08]}  Ng6 {[%clk 0:00:34]} 70. Bc8 {[%clk 0:00:08]}  Nf8 {[%clk 0:00:34]} 71. Kf2 {[%clk 0:00:07]}  Ne6 {[%clk 0:00:34]} 72. Ke3 {[%clk 0:00:08]}  Nd8 {[%clk 0:00:34]} 73. Bd7 {[%clk 0:00:08]}  Nb7 {[%clk 0:00:34]} 74. Bc6 {[%clk 0:00:07]}  Nd6 {[%clk 0:00:32]} 75. Bxd5 {[%clk 0:00:08]}  Ke7 {[%clk 0:00:31]} 76. Bb3 {[%clk 0:00:08]}  Ne8 {[%clk 0:00:31]} 77. d5 {[%clk 0:00:08]}  Kd6 {[%clk 0:00:31]} 78. Kd4 {[%clk 0:00:08]}  Nf6 {[%clk 0:00:32]} 79. Ba2 {[%clk 0:00:09]}  Nh5 {[%clk 0:00:32]} 80. Ke3 {[%clk 0:00:09]}  Nf6 {[%clk 0:00:32]} 81. Kd4 {[%clk 0:00:09]}  Nd7 {[%clk 0:00:32]} 82. Bc4 {[%clk 0:00:08]}  Nc5 {[%clk 0:00:31]} 83. Bb5 {[%clk 0:00:08]}  Nb3+ {[%clk 0:00:31]} 84. Kc3 {[%clk 0:00:09]}  Nc1 {[%clk 0:00:30]} 85. Kd4 {[%clk 0:00:09]}  Na2 {[%clk 0:00:30]} 86. Be8 {[%clk 0:00:08]}  Nb4 {[%clk 0:00:29]} 87. Bg6 {[%clk 0:00:08]}  Nc2+ {[%clk 0:00:25]} 88. Kc3 {[%clk 0:00:06]}  Ne3 {[%clk 0:00:25]} 89. Kd4 {[%clk 0:00:06]}  Nxd5 {[%clk 0:00:25]} 90. Bxf5 {[%clk 0:00:06]}  e3 {[%clk 0:00:25]} 91. Kd3 {[%clk 0:00:05]}  Kc5 {[%clk 0:00:24]} 92. Be4 {[%clk 0:00:03]}  Nxf4+ {[%clk 0:00:24]} 93. Kxe3 {[%clk 0:00:01]}  Kb4 {[%clk 0:00:24]} 94. Kxf4 {[%clk 0:00:01]}  Kxa4 {[%clk 0:00:24]} 95. Bc6+ {[%clk 0:00:02]}  Kb4 {[%clk 0:00:25]} 96. Be8 {[%clk 0:00:03]}  a4 {[%clk 0:00:25]} 97. Bxa4 {[%clk 0:00:03]} 1/2-1/2


[Site "https://www.chess.com"]

[Event "Titled Tuesday Blitz May 24 Late 2022"]
[White "Estrada Nieto, Julian"]
[Black "Clawitter, Craig"]
[WhiteFideId "5101018"]
[BlackFideId "2023105"]
[WhiteElo "2252"]
[BlackElo "2209"]
[Result "1/2-1/2"]
[Round "06"]
[TimeControl "180+1"]
[Date "2022.05.25"]
[WhiteClock "0:00:05"]
[BlackClock "0:00:11"]

1. e4 {[%clk 0:03:00]}  e6 {[%clk 0:03:00]} 2. d4 {[%clk 0:03:00]}  d5 {[%clk 0:03:00]} 3. Nd2 {[%clk 0:03:00]}  Be7 {[%clk 0:03:00]} 4. Bd3 {[%clk 0:02:55]}  c5 {[%clk 0:02:59]} 5. dxc5 {[%clk 0:02:55]}  Nf6 {[%clk 0:02:59]} 6. Qe2 {[%clk 0:02:55]}  O-O {[%clk 0:02:57]} 7. Ngf3 {[%clk 0:02:54]}  a5 {[%clk 0:02:57]} 8. a4 {[%clk 0:02:52]}  Na6 {[%clk 0:02:55]} 9. exd5 {[%clk 0:02:46]}  exd5 {[%clk 0:02:52]} 10. Bxa6 {[%clk 0:02:44]}  Rxa6 {[%clk 0:02:52]} 11. Nb3 {[%clk 0:02:42]}  Ne4 {[%clk 0:02:10]} 12. Be3 {[%clk 0:02:41]}  Re8 {[%clk 0:02:05]} 13. Qb5 {[%clk 0:02:27]}  Rg6 {[%clk 0:01:45]} 14. O-O-O {[%clk 0:02:21]}  Bd7 {[%clk 0:01:23]} 15. Qxb7 {[%clk 0:02:15]}  Bxa4 {[%clk 0:01:17]} 16. Rxd5 {[%clk 0:02:05]}  Qc8 {[%clk 0:01:06]} 17. Qxc8 {[%clk 0:01:52]}  Rxc8 {[%clk 0:01:05]} 18. Re5 {[%clk 0:01:18]}  Re6 {[%clk 0:00:22]} 19. Rxe6 {[%clk 0:01:07]}  fxe6 {[%clk 0:00:23]} 20. Nfd4 {[%clk 0:00:37]}  Nxc5 {[%clk 0:00:15]} 21. Nxc5 {[%clk 0:00:35]}  Bxc5 {[%clk 0:00:15]} 22. c3 {[%clk 0:00:26]}  e5 {[%clk 0:00:13]} 23. Nf5 {[%clk 0:00:26]}  Bd7 {[%clk 0:00:10]} 24. Bxc5 {[%clk 0:00:22]}  Rxc5 {[%clk 0:00:11]} 25. Ne3 {[%clk 0:00:21]}  a4 {[%clk 0:00:10]} 26. Kc2 {[%clk 0:00:17]}  Be8 {[%clk 0:00:10]} 27. Nf5 {[%clk 0:00:13]}  Bg6 {[%clk 0:00:09]} 28. g4 {[%clk 0:00:13]}  e4 {[%clk 0:00:10]} 29. Re1 {[%clk 0:00:10]}  Bxf5 {[%clk 0:00:08]} 30. gxf5 {[%clk 0:00:11]}  Rxf5 {[%clk 0:00:09]} 31. Re2 {[%clk 0:00:11]}  g5 {[%clk 0:00:08]} 32. c4 {[%clk 0:00:11]}  h6 {[%clk 0:00:08]} 33. Kc3 {[%clk 0:00:11]}  Kf7 {[%clk 0:00:07]} 34. Kd4 {[%clk 0:00:11]}  Rf4 {[%clk 0:00:07]} 35. Kd5 {[%clk 0:00:10]}  Ke7 {[%clk 0:00:06]} 36. c5 {[%clk 0:00:11]}  Kd7 {[%clk 0:00:06]} 37. c6+ {[%clk 0:00:11]}  Kc7 {[%clk 0:00:06]} 38. Rc2 {[%clk 0:00:10]}  Rh4 {[%clk 0:00:04]} 39. Ke5 {[%clk 0:00:09]}  Rxh2 {[%clk 0:00:04]} 40. Kxe4 {[%clk 0:00:09]}  g4 {[%clk 0:00:04]} 41. Kf4 {[%clk 0:00:08]}  h5 {[%clk 0:00:05]} 42. Kg3 {[%clk 0:00:08]}  Rh3+ {[%clk 0:00:04]} 43. Kf4 {[%clk 0:00:08]}  Rb3 {[%clk 0:00:05]} 44. Kg5 {[%clk 0:00:07]}  Rb5+ {[%clk 0:00:06]} 45. Kh4 {[%clk 0:00:06]}  Rb6 {[%clk 0:00:05]} 46. Kxh5 {[%clk 0:00:05]}  Rxc6 {[%clk 0:00:06]} 47. Rxc6+ {[%clk 0:00:05]}  Kxc6 {[%clk 0:00:07]} 48. Kxg4 {[%clk 0:00:05]}  Kd5 {[%clk 0:00:07]} 49. Kf5 {[%clk 0:00:05]}  Kc4 {[%clk 0:00:07]} 50. Ke6 {[%clk 0:00:05]}  Kb3 {[%clk 0:00:07]} 51. f4 {[%clk 0:00:05]}  Kxb2 {[%clk 0:00:08]} 52. f5 {[%clk 0:00:06]}  a3 {[%clk 0:00:09]} 53. f6 {[%clk 0:00:07]}  a2 {[%clk 0:00:10]} 54. f7 {[%clk 0:00:07]}  a1=Q {[%clk 0:00:11]} 55. f8=Q {[%clk 0:00:08]}  Qa3 {[%clk 0:00:10]} 56. Qb8+ {[%clk 0:00:06]}  Qb3+ {[%clk 0:00:10]} 57. Qxb3+ {[%clk 0:00:05]}  Kxb3 {[%clk 0:00:11]} 1/2-1/2


[Site "https://www.chess.com"]

[Event "Titled Tuesday Blitz May 24 Late 2022"]
[White "Ezat, Mohamed"]
[Black "Pershin, Denis"]
[WhiteFideId "10600906"]
[BlackFideId "24165506"]
[WhiteElo "2386"]
[BlackElo "2275"]
[Result "0-1"]
[Round "06"]
[TimeControl "180+1"]
[Date "2022.05.24"]
[WhiteClock "0:00:04"]
[BlackClock "0:00:08"]

1. d4 {[%clk 0:03:00]}  Nf6 {[%clk 0:02:56]} 2. c4 {[%clk 0:03:01]}  e6 {[%clk 0:02:56]} 3. Nc3 {[%clk 0:03:01]}  c5 {[%clk 0:02:56]} 4. d5 {[%clk 0:03:00]}  exd5 {[%clk 0:02:56]} 5. cxd5 {[%clk 0:03:01]}  d6 {[%clk 0:02:57]} 6. e4 {[%clk 0:03:01]}  g6 {[%clk 0:02:57]} 7. f4 {[%clk 0:03:02]}  Bg7 {[%clk 0:02:57]} 8. Bb5+ {[%clk 0:03:02]}  Nfd7 {[%clk 0:02:53]} 9. Be2 {[%clk 0:03:03]}  O-O {[%clk 0:02:52]} 10. Nf3 {[%clk 0:03:03]}  Re8 {[%clk 0:02:52]} 11. O-O {[%clk 0:03:02]}  a6 {[%clk 0:02:52]} 12. a4 {[%clk 0:03:01]}  Nf6 {[%clk 0:02:43]} 13. e5 {[%clk 0:03:01]}  dxe5 {[%clk 0:02:43]} 14. fxe5 {[%clk 0:03:01]}  Ng4 {[%clk 0:02:41]} 15. e6 {[%clk 0:03:02]}  fxe6 {[%clk 0:02:40]} 16. Bc4 {[%clk 0:03:01]}  h6 {[%clk 0:01:20]} 17. h3 {[%clk 0:02:23]}  Nf6 {[%clk 0:01:18]} 18. Ne5 {[%clk 0:02:05]}  exd5 {[%clk 0:01:13]} 19. Nxd5 {[%clk 0:02:04]}  Nxd5 {[%clk 0:01:10]} 20. Bxd5+ {[%clk 0:02:03]}  Kh7 {[%clk 0:01:10]} 21. Nf7 {[%clk 0:00:34]}  Qd7 {[%clk 0:01:05]} 22. Bf4 {[%clk 0:00:20]}  Bd4+ {[%clk 0:01:02]} 23. Qxd4 {[%clk 0:00:16]}  cxd4 {[%clk 0:01:00]} 24. Nd6 {[%clk 0:00:14]}  Re7 {[%clk 0:00:15]} 25. Bg3 {[%clk 0:00:09]}  Nc6 {[%clk 0:00:14]} 26. Rf8 {[%clk 0:00:10]}  Ne5 {[%clk 0:00:12]} 27. Bxe5 {[%clk 0:00:09]}  Rxe5 {[%clk 0:00:12]} 28. Rf7+ {[%clk 0:00:07]}  Qxf7 {[%clk 0:00:12]} 29. Bxf7 {[%clk 0:00:07]}  Bd7 {[%clk 0:00:12]} 30. Bc4 {[%clk 0:00:06]}  Bc6 {[%clk 0:00:12]} 31. Bd3 {[%clk 0:00:06]}  Re6 {[%clk 0:00:10]} 32. Nc4 {[%clk 0:00:05]}  Rf8 {[%clk 0:00:11]} 33. Na5 {[%clk 0:00:04]}  Kg7 {[%clk 0:00:11]} 34. Rc1 {[%clk 0:00:03]}  Rc8 {[%clk 0:00:11]} 35. b4 {[%clk 0:00:04]}  Bd7 {[%clk 0:00:10]} 36. Rd1 {[%clk 0:00:04]}  Rc3 {[%clk 0:00:10]} 37. b5 {[%clk 0:00:03]}  axb5 {[%clk 0:00:10]} 38. axb5 {[%clk 0:00:04]}  b6 {[%clk 0:00:10]} 39. Nb7 {[%clk 0:00:03]}  Bxb5 {[%clk 0:00:10]} 40. Nd8 {[%clk 0:00:04]}  Rd6 {[%clk 0:00:09]} 41. Bxb5 {[%clk 0:00:04]}  Rxd8 {[%clk 0:00:09]} 42. Re1 {[%clk 0:00:04]}  d3 {[%clk 0:00:09]} 43. Re7+ {[%clk 0:00:04]}  Kf6 {[%clk 0:00:09]} 44. Rc7 {[%clk 0:00:04]}  Rxc7 {[%clk 0:00:08]} 0-1


[Site "https://www.chess.com"]

[Event "Titled Tuesday Blitz May 24 Late 2022"]
[White "Gong, Patrick"]
[Black "Demchenko, Anton"]
[WhiteFideId "3222500"]
[BlackFideId "4160258"]
[WhiteElo "2103"]
[BlackElo "2539"]
[Result "1-0"]
[Round "06"]
[TimeControl "180+1"]
[Date "2022.05.24"]
[WhiteClock "0:00:11"]
[BlackClock "0:00:03"]

1. e4 {[%clk 0:02:57]}  e5 {[%clk 0:02:59]} 2. d4 {[%clk 0:02:55]}  exd4 {[%clk 0:02:59]} 3. Nf3 {[%clk 0:02:55]}  Nc6 {[%clk 0:02:59]} 4. Nxd4 {[%clk 0:02:56]}  Bc5 {[%clk 0:02:58]} 5. Nb3 {[%clk 0:02:55]}  Bb6 {[%clk 0:02:58]} 6. Qe2 {[%clk 0:02:56]}  a5 {[%clk 0:02:54]} 7. a4 {[%clk 0:02:48]}  d6 {[%clk 0:02:54]} 8. Nc3 {[%clk 0:02:48]}  Nb4 {[%clk 0:02:54]} 9. g3 {[%clk 0:02:17]}  Nf6 {[%clk 0:02:50]} 10. Bg2 {[%clk 0:02:17]}  Bg4 {[%clk 0:02:48]} 11. f3 {[%clk 0:02:17]}  Be6 {[%clk 0:02:48]} 12. Bg5 {[%clk 0:02:12]}  h6 {[%clk 0:02:48]} 13. Bf4 {[%clk 0:02:09]}  g5 {[%clk 0:02:42]} 14. Bc1 {[%clk 0:02:07]}  Qe7 {[%clk 0:02:39]} 15. Nb5 {[%clk 0:02:00]}  O-O-O {[%clk 0:01:54]} 16. N3d4 {[%clk 0:01:54]}  Bd7 {[%clk 0:01:39]} 17. c3 {[%clk 0:01:52]}  Nc6 {[%clk 0:01:40]} 18. Nxc6 {[%clk 0:01:28]}  Bxc6 {[%clk 0:01:10]} 19. Be3 {[%clk 0:01:24]}  d5 {[%clk 0:00:54]} 20. Bxb6 {[%clk 0:01:15]}  cxb6 {[%clk 0:00:55]} 21. O-O {[%clk 0:01:00]}  dxe4 {[%clk 0:00:43]} 22. fxe4 {[%clk 0:00:58]}  Nd7 {[%clk 0:00:27]} 23. Qg4 {[%clk 0:00:40]}  Kb8 {[%clk 0:00:26]} 24. Nd4 {[%clk 0:00:36]}  Ne5 {[%clk 0:00:26]} 25. Qf5 {[%clk 0:00:36]}  h5 {[%clk 0:00:23]} 26. Qf6 {[%clk 0:00:34]}  Qxf6 {[%clk 0:00:23]} 27. Rxf6 {[%clk 0:00:35]}  h4 {[%clk 0:00:23]} 28. Rf5 {[%clk 0:00:26]}  Rde8 {[%clk 0:00:22]} 29. b3 {[%clk 0:00:21]}  hxg3 {[%clk 0:00:22]} 30. hxg3 {[%clk 0:00:22]}  g4 {[%clk 0:00:20]} 31. Raf1 {[%clk 0:00:17]}  Rh6 {[%clk 0:00:21]} 32. R1f4 {[%clk 0:00:16]}  Rd6 {[%clk 0:00:20]} 33. Rf6 {[%clk 0:00:13]}  Red8 {[%clk 0:00:19]} 34. Rxd6 {[%clk 0:00:13]}  Rxd6 {[%clk 0:00:20]} 35. Rf5 {[%clk 0:00:13]}  f6 {[%clk 0:00:21]} 36. Rh5 {[%clk 0:00:12]}  Bd7 {[%clk 0:00:19]} 37. Rh8+ {[%clk 0:00:12]}  Kc7 {[%clk 0:00:18]} 38. Kf2 {[%clk 0:00:13]}  Nf7 {[%clk 0:00:03]} 39. Rf8 {[%clk 0:00:11]}  Ng5 {[%clk 0:00:03]} 40. Ke3 {[%clk 0:00:11]} 1-0


[Site "https://www.chess.com"]

[Event "Titled Tuesday Blitz May 24 Late 2022"]
[White "Haas, Michael"]
[Black "Marin Ramirez, Gerardo"]
[WhiteFideId "1629514"]
[BlackFideId "3901068"]
[WhiteElo "1982"]
[BlackElo "1920"]
[Result "1-0"]
[Round "06"]
[TimeControl "180+1"]
[Date "2022.05.25"]
[WhiteClock "0:00:16"]
[BlackClock "0:00:01"]

1. d4 {[%clk 0:03:00]}  d5 {[%clk 0:02:52]} 2. c4 {[%clk 0:02:59]}  c6 {[%clk 0:02:50]} 3. Nf3 {[%clk 0:02:59]}  Nf6 {[%clk 0:02:51]} 4. g3 {[%clk 0:02:59]}  Bf5 {[%clk 0:02:50]} 5. Nc3 {[%clk 0:02:57]}  e6 {[%clk 0:02:47]} 6. Bg2 {[%clk 0:02:57]}  Nbd7 {[%clk 0:02:45]} 7. O-O {[%clk 0:02:57]}  Be7 {[%clk 0:02:42]} 8. Nh4 {[%clk 0:02:56]}  Bg4 {[%clk 0:02:28]} 9. h3 {[%clk 0:02:35]}  Bh5 {[%clk 0:02:27]} 10. Qb3 {[%clk 0:02:31]}  Qb6 {[%clk 0:02:19]} 11. c5 {[%clk 0:02:21]}  Qc7 {[%clk 0:02:18]} 12. Bf4 {[%clk 0:02:20]}  Qc8 {[%clk 0:02:18]} 13. Nf3 {[%clk 0:02:06]}  O-O {[%clk 0:02:06]} 14. Ne5 {[%clk 0:02:04]}  Nxe5 {[%clk 0:02:04]} 15. Bxe5 {[%clk 0:02:03]}  Nd7 {[%clk 0:02:03]} 16. Bf4 {[%clk 0:01:51]}  e5 {[%clk 0:01:44]} 17. dxe5 {[%clk 0:01:45]}  d4 {[%clk 0:01:41]} 18. Ne4 {[%clk 0:01:36]}  Bxe2 {[%clk 0:01:37]} 19. Rfe1 {[%clk 0:01:36]}  d3 {[%clk 0:01:35]} 20. Nd6 {[%clk 0:01:30]}  Bxd6 {[%clk 0:01:31]} 21. cxd6 {[%clk 0:01:31]}  Re8 {[%clk 0:01:29]} 22. Qc3 {[%clk 0:01:10]}  g5 {[%clk 0:01:12]} 23. Bxg5 {[%clk 0:01:04]}  Rxe5 {[%clk 0:00:46]} 24. Bh6 {[%clk 0:01:03]}  f6 {[%clk 0:00:38]} 25. Qc4+ {[%clk 0:00:41]}  Kh8 {[%clk 0:00:35]} 26. Qf7 {[%clk 0:00:41]}  Rg5 {[%clk 0:00:27]} 27. Bxg5 {[%clk 0:00:29]}  fxg5 {[%clk 0:00:23]} 28. Be4 {[%clk 0:00:29]}  Nf8 {[%clk 0:00:10]} 29. Qf6+ {[%clk 0:00:29]}  Kg8 {[%clk 0:00:05]} 30. Qxg5+ {[%clk 0:00:24]}  Kh8 {[%clk 0:00:05]} 31. Qf6+ {[%clk 0:00:23]}  Kg8 {[%clk 0:00:01]} 32. Bxd3 {[%clk 0:00:18]}  Qxh3 {[%clk 0:00:01]} 33. Bxe2 {[%clk 0:00:16]} 1-0


[Site "https://www.chess.com"]

[Event "Titled Tuesday Blitz May 24 Late 2022"]
[White "Hansen, Eric"]
[Black "Karttunen, Mika"]
[WhiteFideId "2606771"]
[BlackFideId "502081"]
[WhiteElo "2568"]
[BlackElo "2343"]
[Result "1-0"]
[Round "06"]
[TimeControl "180+1"]
[Date "2022.05.24"]
[WhiteClock "0:00:01"]
[BlackClock "0:00:01"]

1. d4 {[%clk 0:03:00]}  Nf6 {[%clk 0:02:59]} 2. c4 {[%clk 0:03:01]}  g6 {[%clk 0:02:59]} 3. Nc3 {[%clk 0:02:58]}  d5 {[%clk 0:02:59]} 4. Bg5 {[%clk 0:02:54]}  Ne4 {[%clk 0:02:58]} 5. Bf4 {[%clk 0:02:55]}  Nxc3 {[%clk 0:02:53]} 6. bxc3 {[%clk 0:02:55]}  dxc4 {[%clk 0:02:54]} 7. e3 {[%clk 0:02:54]}  Be6 {[%clk 0:02:53]} 8. Nf3 {[%clk 0:02:50]}  a6 {[%clk 0:02:31]} 9. Ng5 {[%clk 0:02:26]}  Bd5 {[%clk 0:02:12]} 10. e4 {[%clk 0:02:21]}  h6 {[%clk 0:02:06]} 11. exd5 {[%clk 0:02:21]}  hxg5 {[%clk 0:02:06]} 12. Be5 {[%clk 0:02:20]}  f6 {[%clk 0:02:02]} 13. Qb1 {[%clk 0:02:12]}  Qxd5 {[%clk 0:01:44]} 14. Qxg6+ {[%clk 0:02:07]}  Kd8 {[%clk 0:01:37]} 15. Bg3 {[%clk 0:02:07]}  Nd7 {[%clk 0:01:33]} 16. Be2 {[%clk 0:01:53]}  Qxg2 {[%clk 0:01:26]} 17. Kd2 {[%clk 0:01:47]}  Qd5 {[%clk 0:01:18]} 18. Bg4 {[%clk 0:01:39]}  Nc5 {[%clk 0:01:04]} 19. Rhe1 {[%clk 0:01:32]}  Nd3 {[%clk 0:00:42]} 20. Be6 {[%clk 0:00:50]}  Qc6 {[%clk 0:00:22]} 21. d5 {[%clk 0:00:17]}  Qc5 {[%clk 0:00:19]} 22. Rab1 {[%clk 0:00:11]}  b5 {[%clk 0:00:19]} 23. Qe4 {[%clk 0:00:10]}  Nxf2 {[%clk 0:00:14]} 24. Qf3 {[%clk 0:00:06]}  Nd3 {[%clk 0:00:07]} 25. d6 {[%clk 0:00:06]}  c6 {[%clk 0:00:04]} 26. Bg4 {[%clk 0:00:02]}  Ra7 {[%clk 0:00:01]} 27. Re6 {[%clk 0:00:01]} 1-0


[Site "https://www.chess.com"]

[Event "Titled Tuesday Blitz May 24 Late 2022"]
[White "Holt, Conrad"]
[Black "Domingo Nunez, Ruben"]
[WhiteFideId "2034387"]
[BlackFideId "22245570"]
[WhiteElo "2586"]
[BlackElo "2376"]
[Result "1-0"]
[Round "06"]
[TimeControl "180+1"]
[Date "2022.05.24"]
[WhiteClock "0:01:09"]
[BlackClock "0:00:20"]

1. d4 {[%clk 0:03:00]}  d6 {[%clk 0:02:59]} 2. Nf3 {[%clk 0:03:00]}  Nf6 {[%clk 0:02:56]} 3. c4 {[%clk 0:03:00]}  Nbd7 {[%clk 0:02:56]} 4. Nc3 {[%clk 0:03:00]}  e5 {[%clk 0:02:56]} 5. e4 {[%clk 0:03:00]}  Be7 {[%clk 0:02:54]} 6. Bd3 {[%clk 0:02:59]}  c6 {[%clk 0:02:47]} 7. O-O {[%clk 0:02:58]}  Qc7 {[%clk 0:02:47]} 8. Re1 {[%clk 0:02:51]}  O-O {[%clk 0:02:47]} 9. Bg5 {[%clk 0:02:50]}  Re8 {[%clk 0:02:46]} 10. Rb1 {[%clk 0:02:41]}  h6 {[%clk 0:02:43]} 11. Bh4 {[%clk 0:02:33]}  exd4 {[%clk 0:02:21]} 12. Nxd4 {[%clk 0:02:32]}  Ne5 {[%clk 0:02:22]} 13. Bf1 {[%clk 0:02:30]}  Ng6 {[%clk 0:01:35]} 14. Bg3 {[%clk 0:02:29]}  Bg4 {[%clk 0:01:35]} 15. Be2 {[%clk 0:01:59]}  Bd7 {[%clk 0:01:33]} 16. Qd2 {[%clk 0:01:56]}  Bf8 {[%clk 0:01:31]} 17. f3 {[%clk 0:01:49]}  Nh5 {[%clk 0:01:25]} 18. Bf2 {[%clk 0:01:49]}  Nhf4 {[%clk 0:01:26]} 19. Bf1 {[%clk 0:01:49]}  Rad8 {[%clk 0:01:26]} 20. Nf5 {[%clk 0:01:43]}  Bc8 {[%clk 0:01:13]} 21. Rbd1 {[%clk 0:01:36]}  a6 {[%clk 0:01:04]} 22. Na4 {[%clk 0:01:28]}  c5 {[%clk 0:01:03]} 23. Nc3 {[%clk 0:01:25]}  Ne6 {[%clk 0:00:52]} 24. Nd5 {[%clk 0:01:24]}  Qc6 {[%clk 0:00:48]} 25. Qc3 {[%clk 0:01:21]}  Nc7 {[%clk 0:00:37]} 26. Nxh6+ {[%clk 0:01:18]}  Kh7 {[%clk 0:00:19]} 27. Nxf7 {[%clk 0:01:16]}  Rd7 {[%clk 0:00:19]} 28. Ng5+ {[%clk 0:01:13]}  Kg8 {[%clk 0:00:20]} 29. f4 {[%clk 0:01:10]}  b5 {[%clk 0:00:20]} 30. Qh3 {[%clk 0:01:09]} 1-0


[Site "https://www.chess.com"]

[Event "Titled Tuesday Blitz May 24 Late 2022"]
[White "Huber, Benedikt"]
[Black "Motylev, Alexander"]
[WhiteFideId "12923583"]
[BlackFideId "4121830"]
[WhiteElo "1979"]
[BlackElo "2470"]
[Result "0-1"]
[Round "06"]
[TimeControl "180+1"]
[Date "2022.05.25"]
[WhiteClock "0:00:04"]
[BlackClock "0:00:06"]

1. d4 {[%clk 0:03:00]}  e6 {[%clk 0:02:58]} 2. c4 {[%clk 0:03:00]}  d5 {[%clk 0:02:58]} 3. Nc3 {[%clk 0:03:00]}  Bb4 {[%clk 0:02:58]} 4. cxd5 {[%clk 0:02:58]}  exd5 {[%clk 0:02:57]} 5. Bf4 {[%clk 0:02:59]}  Nf6 {[%clk 0:02:54]} 6. e3 {[%clk 0:02:59]}  O-O {[%clk 0:02:54]} 7. Bd3 {[%clk 0:02:57]}  c5 {[%clk 0:02:54]} 8. Ne2 {[%clk 0:02:57]}  c4 {[%clk 0:02:51]} 9. Bc2 {[%clk 0:02:56]}  Nc6 {[%clk 0:02:52]} 10. O-O {[%clk 0:02:55]}  Re8 {[%clk 0:02:48]} 11. a3 {[%clk 0:02:21]}  Bf8 {[%clk 0:02:44]} 12. Bg5 {[%clk 0:02:14]}  Be6 {[%clk 0:01:37]} 13. f3 {[%clk 0:02:06]}  h6 {[%clk 0:01:35]} 14. Bh4 {[%clk 0:02:02]}  g5 {[%clk 0:01:34]} 15. Bf2 {[%clk 0:01:55]}  Bg7 {[%clk 0:01:27]} 16. e4 {[%clk 0:01:54]}  dxe4 {[%clk 0:01:19]} 17. fxe4 {[%clk 0:01:55]}  Bg4 {[%clk 0:01:19]} 18. e5 {[%clk 0:01:46]}  Nd5 {[%clk 0:01:19]} 19. h3 {[%clk 0:01:40]}  Bh5 {[%clk 0:01:16]} 20. g4 {[%clk 0:01:08]}  Bg6 {[%clk 0:01:15]} 21. Bxg6 {[%clk 0:01:08]}  fxg6 {[%clk 0:01:15]} 22. Qc2 {[%clk 0:01:09]}  Nce7 {[%clk 0:01:08]} 23. Rad1 {[%clk 0:01:00]}  Rc8 {[%clk 0:01:07]} 24. Ne4 {[%clk 0:01:00]}  Rf8 {[%clk 0:01:03]} 25. Nd6 {[%clk 0:00:58]}  Rc6 {[%clk 0:00:45]} 26. Qe4 {[%clk 0:00:58]}  Qd7 {[%clk 0:00:38]} 27. Bg3 {[%clk 0:00:56]}  Rd8 {[%clk 0:00:30]} 28. Nc3 {[%clk 0:00:53]}  Qe6 {[%clk 0:00:11]} 29. Rf2 {[%clk 0:00:40]}  Nxc3 {[%clk 0:00:09]} 30. bxc3 {[%clk 0:00:28]}  Rcxd6 {[%clk 0:00:09]} 31. Rdf1 {[%clk 0:00:18]}  Nd5 {[%clk 0:00:09]} 32. Rf7 {[%clk 0:00:11]}  R6d7 {[%clk 0:00:09]} 33. R7f3 {[%clk 0:00:08]}  Kh7 {[%clk 0:00:06]} 34. h4 {[%clk 0:00:07]}  gxh4 {[%clk 0:00:06]} 35. Bxh4 {[%clk 0:00:08]}  Re8 {[%clk 0:00:06]} 36. Bg5 {[%clk 0:00:04]}  hxg5 {[%clk 0:00:06]} 37. Rh3+ {[%clk 0:00:05]}  Kg8 {[%clk 0:00:06]} 38. Kg2 {[%clk 0:00:04]}  Rf7 {[%clk 0:00:06]} 0-1


[Site "https://www.chess.com"]